bitfinex/quotes_ETHUSD_20250213
["timestamp","ask_amount","ask_price","bid_price","bid_amount"]
[1739417462381,137.2294321,2736.8,2736.7,71.69403]
[1739417462890,137.2294321,2736.8,2736.7,72.17949258]
[1739417463477,137.2294321,2736.8,2736.7,74.18047686]
[1739417463654,137.2294321,2736.8,2736.7,102.88773647]
[1739417463836,137.2294321,2736.8,2736.7,103.43773647]
[1739417464033,137.2294321,2736.8,2736.7,103.63773647]
[1739417464780,137.2294321,2736.8,2736.7,108.94773647]
[1739417465133,137.2294321,2736.8,2736.7,109.04773647]
[1739417465338,137.2294321,2736.8,2736.7,108.94773647]
[1739417465638,137.2294321,2736.8,2736.7,109.04773647]
[1739417466060,137.2294321,2736.8,2736.7,108.94773647]
[1739417466449,137.2294321,2736.8,2736.7,109.04773647]
[1739417466650,137.2294321,2736.8,2736.7,108.94773647]
[1739417466852,137.2294321,2736.8,2736.7,109.04773647]
[1739417467047,137.2294321,2736.8,2736.7,107.90585219]
[1739417467274,135.70889742,2736.8,2736.7,107.90585219]
[1739417467654,135.70889742,2736.8,2736.7,103.90585219]
[1739417468478,135.70889742,2736.8,2736.7,98.59585219]
[1739417468641,135.70889742,2736.8,2736.7,98.13285219]
[1739417468840,135.70889742,2736.8,2736.7,98.39585219]
[1739417470775,135.70889742,2736.8,2736.7,102.36585219]
[1739417471288,135.70889742,2736.8,2736.7,103.40773647]
[1739417472002,135.70889742,2736.8,2736.7,102.91585219]
[1739417472151,133.20045781,2736.8,2736.7,102.91585219]
[1739417472488,133.20045781,2736.8,2736.7,102.36585219]
[1739417472762,133.20045781,2736.8,2736.7,100.37228961]
[1739417472915,133.20045781,2736.8,2736.7,100.00473]
[1739417473713,133.20045781,2736.8,2736.7,64.747]
[1739417473916,133.20045781,2736.8,2736.7,65.011]
[1739417474069,138.47676806,2736.8,2736.7,65.011]
[1739417474709,138.47676806,2736.8,2736.7,68.011]
[1739417475007,134.86215781,2736.8,2736.7,68.011]
[1739417476718,134.86215781,2736.8,2736.7,65.011]
[1739417477079,138.35928574,2736.8,2736.7,65.011]
[1739417477276,138.35928574,2736.8,2736.7,64.747]
[1739417477579,138.35928574,2736.8,2736.7,68.011]
[1739417478278,141.97389599,2736.8,2736.7,68.011]
[1739417480391,141.97389599,2736.8,2736.7,68.01]
[1739417481324,141.97389599,2736.8,2736.7,67.747]
[1739417481481,141.97389599,2736.8,2736.7,68.01]
[1739417484030,138.35928574,2736.8,2736.7,68.01]
[1739417486032,138.35928574,2736.8,2736.7,67.747]
[1739417486210,138.35928574,2736.8,2736.7,16.041]
[1739417488255,142.01318574,2736.8,2736.7,16.041]
[1739417488398,142.01318574,2736.8,2736.7,15.777]
[1739417488731,146.17779599,2736.8,2736.7,13.041]
[1739417489596,146.17779599,2736.8,2736.7,16.041]
[1739417493063,141.97389599,2736.8,2736.7,16.041]
[1739417493832,145.62779599,2736.8,2736.7,16.041]
[1739417494235,146.17779599,2736.8,2736.7,15.777]
[1739417494439,146.17779599,2736.8,2736.7,16.041]
[1739417495267,146.17779599,2736.8,2736.7,15.777]
[1739417495440,149.70215508,2736.8,2736.7,3.0]
[1739417495625,149.70215508,2736.8,2736.7,3.264]
[1739417496140,149.70215508,2736.8,2736.7,3.0]
[1739417496345,149.70215508,2736.8,2736.7,3.264]
[1739417497339,149.70215508,2736.8,2736.7,0.264]
[1739417497544,146.17779599,2736.8,2736.7,0.264]
[1739417497849,141.97389599,2736.8,2736.7,0.264]
[1739417498046,142.52389599,2736.8,2736.7,0.264]
[1739417498243,142.52389599,2736.8,2736.7,16.04]
[1739417498944,141.97389599,2736.8,2736.7,16.04]
[1739417499170,138.35928574,2736.8,2736.7,16.04]
[1739417499672,136.69758574,2736.8,2736.7,16.04]
[1739417499829,136.69758574,2736.8,2736.7,51.04]
[1739417501261,136.69758574,2736.8,2736.7,68.04]
[1739417511532,136.69758574,2736.8,2736.7,67.776]
[1739417511688,140.31219599,2736.8,2736.7,30.04]
[1739417511893,145.54669599,2736.8,2736.7,30.04]
[1739417512093,145.54669599,2736.8,2736.7,15.776]
[1739417512315,145.54669599,2736.8,2736.7,16.04]
[1739417512912,141.89279599,2736.8,2736.7,16.04]
[1739417513112,145.54669599,2736.8,2736.7,16.04]
[1739417513639,141.89279599,2736.8,2736.7,16.04]
[1739417514521,141.89279599,2736.8,2736.7,51.04]
[1739417516888,140.31219599,2736.8,2736.7,51.04]
[1739417517124,136.69758574,2736.8,2736.7,51.04]
[1739417517398,136.69758574,2736.8,2736.7,64.04]
[1739417518837,136.69758574,2736.8,2736.7,65.6375]
[1739417519036,136.69758574,2736.8,2736.7,69.29153]
[1739417519337,136.69758574,2736.8,2736.7,73.77699258]
[1739417519637,136.69758574,2736.8,2736.7,70.12296258]
[1739417520844,136.69758574,2736.8,2736.7,73.77699258]
[1739417521969,136.69758574,2736.8,2736.7,70.12296258]
[1739417522770,136.69758574,2736.8,2736.7,67.776]
[1739417522914,138.79593238,2736.8,2736.7,32.776]
[1739417523234,138.79593238,2736.8,2736.7,33.04]
[1739417526327,136.69758574,2736.8,2736.7,33.04]
[1739417526744,136.69758574,2736.8,2736.7,34.6527]
[1739417526900,136.69758574,2736.8,2736.7,69.6527]
[1739417527099,136.69758574,2736.8,2736.7,73.30673]
[1739417527807,136.69758574,2736.8,2736.7,73.79219258]
[1739417528404,136.69758574,2736.8,2736.7,74.65163124]
[1739417528804,134.87063574,2736.8,2736.7,90.59243124]
[1739417529055,136.5355411,2736.8,2736.7,90.59243124]
[1739417529235,134.48260648,2736.8,2736.7,90.59243124]
[1739417529729,132.84038059,2736.8,2736.7,103.54053124]
[1739417530247,138.39038059,2736.8,2736.7,103.54053124]
[1739417531249,135.4257996,2736.8,2736.7,103.54053124]
[1739417531743,133.5988496,2736.8,2736.7,103.54053124]
[1739417532156,130.1744496,2736.8,2736.7,103.54053124]
[1739417532327,124.8539496,2736.8,2736.7,103.54053124]
[1739417532515,121.2000496,2736.8,2736.7,103.54053124]
[1739417532916,121.2000496,2736.8,2736.7,103.84053124]
[1739417533326,124.69778319,2736.8,2736.7,103.84053124]
[1739417533621,119.52339026,2736.8,2736.7,103.84053124]
[1739417534147,117.69644026,2736.8,2736.7,103.84053124]
[1739417534353,115.86949026,2736.8,2736.7,103.84053124]
[1739417534521,119.59254026,2736.8,2736.7,103.54053124]
[1739417534727,119.59254026,2736.8,2736.7,103.04865219]
[1739417534924,119.59254026,2736.8,2736.7,103.64053124]
[1739417535343,112.28474026,2736.8,2736.7,103.64053124]
[1739417535531,110.45779026,2736.8,2736.7,103.64053124]
[1739417535856,116.00779026,2736.8,2736.7,103.64053124]
[1739417536519,110.52694026,2736.8,2736.7,103.64053124]
[1739417537235,110.59609026,2736.8,2736.7,103.64053124]
[1739417537599,108.76914026,2736.8,2736.7,103.54053124]
[1739417537917,108.76914026,2736.8,2736.7,103.64053124]
[1739417538601,108.76914026,2736.8,2736.7,103.54053124]
[1739417538741,114.31914026,2736.8,2736.7,103.64053124]
[1739417539135,114.31914026,2736.8,2736.7,103.54053124]
[1739417539636,114.31914026,2736.8,2736.7,103.64053124]
[1739417539972,118.04219026,2736.8,2736.7,103.64053124]
[1739417540133,110.73439026,2736.8,2736.7,103.64053124]
[1739417540979,107.08049026,2736.8,2736.7,103.64053124]
[1739417541187,108.97659026,2736.8,2736.7,103.64053124]
[1739417542054,105.32269026,2736.8,2736.7,103.64053124]
[1739417542454,110.87269026,2736.8,2736.7,103.64053124]
[1739417543542,110.87269026,2736.8,2736.7,103.63953124]
[1739417543744,116.42269026,2736.8,2736.7,103.14765219]
[1739417544671,116.42269026,2736.8,2736.7,103.04765219]
[1739417545384,121.97269026,2736.8,2736.7,103.04765219]
[1739417545746,118.31879026,2736.8,2736.7,103.53953124]
[1739417545943,112.83794026,2736.8,2736.7,103.53953124]
[1739417546649,114.73404026,2736.8,2736.7,103.53953124]
[1739417546982,109.25319026,2736.8,2736.7,103.53953124]
[1739417548087,109.25319026,2736.8,2736.7,103.27653124]
[1739417548268,114.80319026,2736.8,2736.7,102.01218961]
[1739417548667,114.80319026,2736.8,2736.7,103.04765219]
[1739417548882,114.80319026,2736.8,2736.7,103.53953124]
[1739417549489,112.97624026,2736.8,2736.7,103.53953124]
[1739417549695,109.1661748,2736.8,2736.7,103.53953124]
[1739417551196,114.7161748,2736.8,2736.7,103.04765219]
[1739417551706,114.7161748,2736.8,2736.7,108.35765219]
[1739417552395,114.7853248,2736.8,2736.7,108.84953124]
[1739417553565,120.3353248,2736.8,2736.7,108.29953124]
[1739417554699,120.3353248,2736.8,2736.7,107.80765219]
[1739417554872,125.8853248,2736.8,2736.7,107.80765219]
[1739417556233,131.4353248,2736.8,2736.7,107.80765219]
[1739417556800,131.4353248,2736.8,2736.7,107.54465219]
[1739417557132,131.4353248,2736.8,2736.7,99.76893]
[1739417557314,131.4353248,2736.8,2736.7,97.03193]
[1739417557505,136.9853248,2736.8,2736.7,97.03193]
[1739417557720,136.9853248,2736.8,2736.7,68.69303]
[1739417558220,136.9853248,2736.8,2736.7,71.69303]
[1739417559737,136.9853248,2736.8,2736.7,71.43003]
[1739417559935,136.9853248,2736.8,2736.7,71.69303]
[1739417561691,136.9853248,2736.8,2736.7,99.77533]
[1739417561931,136.9853248,2736.8,2736.7,96.3843]
[1739417562129,136.9853248,2736.8,2736.7,96.1213]
[1739417562306,136.9853248,2736.8,2736.7,100.03833]
[1739417562735,136.9853248,2736.8,2736.7,71.69303]
[1739417563735,136.9853248,2736.8,2736.7,100.03833]
[1739417568372,136.9853248,2736.8,2736.7,99.77533]
[1739417568577,136.9853248,2736.8,2736.7,100.03733]
[1739417569638,136.9853248,2736.8,2736.7,71.69203]
[1739417572753,136.9853248,2736.8,2736.7,100.03733]
[1739417576593,136.9853248,2736.8,2736.7,101.54223]
[1739417576754,127.8505748,2736.8,2736.7,102.51957163]
[1739417576956,133.4005748,2736.8,2736.7,103.43713124]
[1739417577196,133.4005748,2736.8,2736.7,108.74713124]
[1739417577491,131.5736248,2736.8,2736.7,108.74713124]
[1739417577695,127.9197248,2736.8,2736.7,108.74713124]
[1739417578135,126.9197248,2736.8,2736.7,108.84713124]
[1739417578432,126.9888748,2736.8,2736.7,108.84713124]
[1739417578633,126.98246106,2736.8,2736.7,108.84713124]
[1739417579531,123.7042275,2736.8,2736.7,108.84713124]
[1739417579895,123.7042275,2736.8,2736.7,108.48513124]
[1739417580221,123.7042275,2736.8,2736.7,107.70525219]
[1739417580403,123.7042275,2736.8,2736.7,97.14288961]
[1739417580609,123.7042275,2736.8,2736.7,96.77533]
[1739417580823,131.10713477,2736.8,2736.7,97.03833]
[1739417581017,129.2542275,2736.8,2736.7,97.03833]
[1739417581323,129.2542275,2736.8,2736.7,100.03833]
[1739417581834,129.2542275,2736.8,2736.7,71.69303]
[1739417582007,132.29551197,2736.8,2736.7,71.69303]
[1739417582512,132.29551197,2736.8,2736.7,72.17849258]
[1739417583412,137.84551197,2736.8,2736.7,72.17849258]
[1739417583616,137.84551197,2736.8,2736.7,72.67037163]
[1739417583840,137.84551197,2736.8,2736.7,101.01187163]
[1739417584008,132.36466197,2736.8,2736.7,101.92943124]
[1739417584314,123.22991197,2736.8,2736.7,101.92943124]
[1739417584519,119.57601197,2736.8,2736.7,103.55713124]
[1739417584933,125.12601197,2736.8,2736.7,103.55713124]
[1739417585440,117.81821197,2736.8,2736.7,103.55713124]
[1739417586509,123.36821197,2736.8,2736.7,103.55713124]
[1739417586897,123.36821197,2736.8,2736.7,102.74413124]
[1739417587037,123.36821197,2736.8,2736.7,100.88755219]
[1739417587366,123.36821197,2736.8,2736.7,97.88755219]
[1739417587530,123.36821197,2736.8,2736.7,97.03453]
[1739417587729,128.91821197,2736.8,2736.7,68.69303]
[1739417587932,128.91821197,2736.8,2736.7,71.69303]
[1739417588222,128.91821197,2736.8,2736.7,68.69303]
[1739417588654,128.91821197,2736.8,2736.7,71.69303]
[1739417589149,134.46821197,2736.8,2736.7,71.69303]
[1739417590111,134.46821197,2736.8,2736.7,72.17849258]
[1739417590748,134.46821197,2736.8,2736.7,100.52129258]
[1739417591252,130.88346197,2736.8,2736.7,102.64027163]
[1739417591561,127.22956197,2736.8,2736.7,103.00783124]
[1739417592349,119.92176197,2736.8,2736.7,103.55783124]
[1739417592546,125.47176197,2736.8,2736.7,103.55783124]
[1739417593351,121.81786197,2736.8,2736.7,103.55783124]
[1739417593554,116.33701197,2736.8,2736.7,103.55783124]
[1739417593741,121.88701197,2736.8,2736.7,103.55783124]
[1739417594318,120.06006197,2736.8,2736.7,103.55783124]
[1739417595046,125.61006197,2736.8,2736.7,103.55783124]
[1739417596149,121.95616197,2736.8,2736.7,103.55783124]
[1739417596353,118.37141197,2736.8,2736.7,108.86783124]
[1739417597466,116.61361197,2736.8,2736.7,108.86783124]
[1739417598920,114.85581197,2736.8,2736.7,108.86783124]
[1739417599120,113.02886197,2736.8,2736.7,108.86783124]
[1739417599656,111.20191197,2736.8,2736.7,108.86783124]
[1739417600067,116.75191197,2736.8,2736.7,108.86783124]
[1739417600862,113.09801197,2736.8,2736.7,108.86783124]
[1739417601833,118.64801197,2736.8,2736.7,108.86783124]
[1739417602760,118.64801197,2736.8,2736.7,108.31783124]
[1739417603254,124.19801197,2736.8,2736.7,108.31783124]
[1739417603460,122.14569719,2736.8,2736.7,108.31783124]
[1739417603676,122.14569719,2736.8,2736.7,106.42773124]
[1739417603880,119.63738326,2736.8,2736.7,105.71338961]
[1739417604080,119.63738326,2736.8,2736.7,105.45038961]
[1739417604242,119.63738326,2736.8,2736.7,97.40338961]
[1739417604449,125.18738326,2736.8,2736.7,97.03583]
[1739417604831,125.18738326,2736.8,2736.7,100.52129258]
[1739417605774,130.73738326,2736.8,2736.7,100.52129258]
[1739417605947,130.73738326,2736.8,2736.7,101.01317163]
[1739417606974,136.28738326,2736.8,2736.7,101.01317163]
[1739417607508,127.15263326,2736.8,2736.7,101.93073124]
[1739417607637,127.15263326,2736.8,2736.7,108.76003124]
[1739417608417,129.04873326,2736.8,2736.7,108.76003124]
[1739417608725,127.22178326,2736.8,2736.7,108.76003124]
[1739417609221,125.39483326,2736.8,2736.7,108.76003124]
[1739417609385,121.74093326,2736.8,2736.7,108.76003124]
[1739417609728,124.46398326,2736.8,2736.7,108.76003124]
[1739417610215,120.81008326,2736.8,2736.7,108.76003124]
[1739417610533,117.15618326,2736.8,2736.7,108.76003124]
[1739417610828,122.70618326,2736.8,2736.7,108.76003124]
[1739417611319,120.87923326,2736.8,2736.7,108.76003124]
[1739417611532,117.22533326,2736.8,2736.7,108.76003124]
[1739417611672,113.57143326,2736.8,2736.7,108.76003124]
[1739417612228,117.29448326,2736.8,2736.7,108.76003124]
[1739417613268,111.81363326,2736.8,2736.7,108.76003124]
[1739417613395,115.53668326,2736.8,2736.7,108.76003124]
[1739417613596,111.88278326,2736.8,2736.7,108.76003124]
[1739417614302,106.40193326,2736.8,2736.7,108.76003124]
[1739417614497,104.57498326,2736.8,2736.7,108.76003124]
[1739417614847,110.12498326,2736.8,2736.7,108.76003124]
[1739417615253,108.29803326,2736.8,2736.7,108.76003124]
[1739417615449,106.47108326,2736.8,2736.7,108.76003124]
[1739417615604,104.64413326,2736.8,2736.7,108.76003124]
[1739417616232,104.71328326,2736.8,2736.7,108.76003124]
[1739417616529,101.05938326,2736.8,2736.7,104.76003124]
[1739417616759,97.40548326,2736.8,2736.7,104.76003124]
[1739417617525,102.95548326,2736.8,2736.7,104.76003124]
[1739417618561,102.95548326,2736.8,2736.7,108.76003124]
[1739417618760,108.50548326,2736.8,2736.7,108.76003124]
[1739417619753,106.98507437,2736.8,2736.7,108.76003124]
[1739417619907,112.53507437,2736.8,2736.7,108.76003124]
[1739417620862,112.53507437,2736.8,2736.7,108.26815219]
[1739417621246,118.08507437,2736.8,2736.7,105.45038961]
[1739417621563,118.08507437,2736.8,2736.7,105.34483]
[1739417621564,119.62617437,2736.8,2736.7,105.34483]
[1739417621707,119.62617437,2736.8,2736.7,77.00203]
[1739417621907,119.62617437,2736.8,2736.7,68.43003]
[1739417622464,118.08507437,2736.8,2736.7,65.038]
[1739417622660,125.26107437,2736.8,2736.7,68.038]
[1739417622964,125.26107437,2736.8,2736.7,65.038]
[1739417623328,125.26107437,2736.8,2736.7,71.69203]
[1739417623939,130.81107437,2736.8,2736.7,71.69203]
[1739417625767,136.36107437,2736.8,2736.7,71.69203]
[1739417626129,136.36107437,2736.8,2736.7,71.43003]
[1739417626328,136.36107437,2736.8,2736.7,71.69203]
[1739417627172,136.36107437,2736.8,2736.7,72.17749258]
[1739417627637,136.36107437,2736.8,2736.7,72.66937163]
[1739417627845,136.36107437,2736.8,2736.7,93.26887163]
[1739417628260,134.73507437,2736.8,2736.7,93.26887163]
[1739417628629,134.73507437,2736.8,2736.7,93.63643124]
[1739417628966,134.73507437,2736.8,2736.7,101.37693124]
[1739417629374,131.08117437,2736.8,2736.7,103.46943124]
[1739417629665,131.15032437,2736.8,2736.7,103.46943124]
[1739417630773,135.05851256,2736.8,2736.7,103.46943124]
[1739417631037,135.05851256,2736.8,2736.7,101.11493124]
[1739417631186,135.05851256,2736.8,2736.7,100.88505219]
[1739417632879,135.05851256,2736.8,2736.7,97.03203]
[1739417633075,135.05851256,2736.8,2736.7,93.378]
[1739417633248,140.17612281,2736.8,2736.7,96.379]
[1739417633449,140.17612281,2736.8,2736.7,97.37178245]
[1739417633686,140.17612281,2736.8,2736.7,66.03178245]
[1739417634055,140.17612281,2736.8,2736.7,69.68581245]
[1739417634271,136.56151256,2736.8,2736.7,69.68581245]
[1739417634490,136.56151256,2736.8,2736.7,72.68581245]
[1739417635897,136.56151256,2736.8,2736.7,69.03178245]
[1739417636694,136.56151256,2736.8,2736.7,70.00773527]
[1739417640504,136.56151256,2736.8,2736.7,69.74473527]
[1739417640799,140.17612281,2736.8,2736.7,70.00673527]
[1739417644177,143.83002281,2736.8,2736.7,66.74473527]
[1739417644507,144.38002281,2736.8,2736.7,66.77554063]
[1739417644687,144.58002281,2736.8,2736.7,62.77554063]
[1739417645324,144.58002281,2736.8,2736.7,49.77554063]
[1739417645617,144.58002281,2736.8,2736.7,17.77554063]
[1739417645807,144.58002281,2736.8,2736.7,16.78275818]
[1739417646049,144.68002281,2736.8,2736.7,13.52075818]
[1739417646208,144.68002281,2736.8,2736.7,12.11615818]
[1739417646413,144.68002281,2736.8,2736.2,35.0]
[1739417646414,5.27677,2736.3,2736.2,35.0]
[1739417646721,6.939891,2736.3,2736.2,47.778]
[1739417647029,6.939891,2736.3,2736.2,48.04]
[1739417647191,6.939891,2736.3,2736.2,51.04]
[1739417648137,6.939891,2736.3,2736.2,48.04]
[1739417648296,3.285321,2736.3,2736.2,51.04]
[1739417648495,6.939891,2736.3,2736.2,51.04]
[1739417648876,7.039891,2736.3,2736.2,51.04]
[1739417651417,7.039891,2736.3,2736.2,47.778]
[1739417651749,7.039891,2736.3,2736.2,48.041]
[1739417655359,7.039891,2736.3,2736.2,13.041]
[1739417655860,7.039891,2736.3,2736.2,48.041]
[1739417658935,7.039891,2736.3,2736.2,13.041]
[1739417659400,7.039891,2736.3,2736.2,48.041]
[1739417662552,7.039891,2736.3,2736.2,13.041]
[1739417663096,7.039891,2736.3,2736.2,48.041]
[1739417664191,7.039891,2736.3,2736.2,13.041]
[1739417673706,7.039891,2736.3,2736.2,14.03527455]
[1739417673897,1.463121,2736.3,2736.2,17.03527455]
[1739417674099,0.55,2736.3,2736.2,17.52073713]
[1739417674283,0.55,2736.3,2736.2,52.52073713]
[1739417675067,0.55,2736.3,2736.2,52.03527455]
[1739417675683,1.646,2736.5,2736.2,52.03527455]
[1739417676012,1.6383,2736.7,2736.3,3.0]
[1739417676172,3.61461025,2736.6,2736.3,3.0]
[1739417676368,7.26878025,2736.6,2736.3,3.0]
[1739417676921,5.29273,2736.4,2736.3,3.0]
[1739417677092,5.29273,2736.4,2736.3,16.042]
[1739417677093,8.71708909,2736.4,2736.3,16.042]
[1739417677287,10.40069002,2736.4,2736.3,16.042]
[1739417677498,10.40069002,2736.4,2736.3,15.779]
[1739417677812,10.60069002,2736.4,2736.3,17.03627455]
[1739417678172,6.94626002,2736.4,2736.3,17.03627455]
[1739417678415,1.68360093,2736.4,2736.3,17.03627455]
[1739417678725,0.55,2736.5,2736.3,17.03627455]
[1739417679419,4.20422,2736.6,2736.3,16.042]
[1739417679583,4.40422,2736.6,2736.4,3.0]
[1739417679917,5.82203,2736.4,2736.2,13.0]
[1739417680154,10.09416209,2736.3,2736.2,13.0]
[1739417680436,0.55,2735.9,2735.7,1.95115485]
[1739417680630,0.55,2736.0,2735.8,13.043]
[1739417680855,4.20497,2736.0,2735.8,13.043]
[1739417681000,4.20497,2736.0,2735.9,3.0]
[1739417681323,4.990939,2736.0,2735.9,3.0]
[1739417681702,1.335969,2736.0,2735.9,3.0]
[1739417681907,0.55,2736.2,2735.9,3.0]
[1739417682328,4.20472,2736.2,2735.9,3.0]
[1739417682552,4.20472,2736.2,2736.1,3.0]
[1739417682689,4.20472,2736.2,2736.1,15.78]
[1739417682893,5.77622,2736.2,2736.1,16.043]
[1739417683092,7.18110721,2736.2,2736.1,16.043]
[1739417685992,3.52638721,2736.2,2736.1,16.043]
[1739417687331,3.52638721,2736.2,2736.1,51.043]
[1739417687750,1.95488721,2736.2,2736.1,51.043]
[1739417687923,0.55,2736.2,2736.1,52.03727455]
[1739417688253,1.5803,2736.4,2736.1,52.03727455]
[1739417688455,3.85467,2736.3,2736.1,52.03727455]
[1739417688655,0.2,2736.3,2736.1,52.03727455]
[1739417688859,3.6547,2736.2,2736.1,52.03727455]
[1739417689156,5.113647,2736.2,2736.1,52.03727455]
[1739417689457,6.693947,2736.2,2736.1,16.043]
[1739417691053,3.039247,2736.2,2736.1,16.043]
[1739417691679,1.458947,2736.2,2736.1,16.043]
[1739417691855,1.5504,2736.5,2736.1,16.043]
[1739417692032,3.42435909,2736.6,2736.1,16.043]
[1739417692380,7.07852909,2736.6,2736.1,29.043]
[1739417693120,0.55,2736.5,2736.1,29.043]
[1739417694034,0.55,2736.5,2736.2,35.0]
[1739417694229,4.41735291,2736.4,2736.2,35.0]
[1739417695662,0.55,2736.3,2736.2,38.0]
[1739417696324,0.55,2736.3,2736.2,3.0]
[1739417696524,0.55,2736.3,2736.2,3.263]
[1739417698719,4.20457,2736.3,2736.2,3.263]
[1739417698931,9.77967138,2736.3,2736.2,3.263]
[1739417700796,9.77967138,2736.3,2736.1,12.78]
[1739417701084,0.55,2735.9,2735.6,48.0]
[1739417701245,0.55,2735.9,2735.7,13.044]
[1739417701781,0.55,2735.9,2735.8,3.0]
[1739417702076,1.31291991,2735.9,2735.8,3.0]
[1739417703975,6.73211991,2735.9,2735.8,3.0]
[1739417704177,6.73211991,2735.9,2735.8,3.263]
[1739417704481,6.73211991,2735.9,2735.8,0.263]
[1739417705688,3.07701991,2735.9,2735.4,3.0]
[1739417705874,3.97435909,2735.6,2735.5,0.263]
[1739417706179,3.97435909,2735.6,2735.5,13.045]
[1739417706537,0.55,2735.6,2735.5,13.045]
[1739417708357,0.55,2735.6,2735.5,16.045]
[1739417708534,4.2055,2735.6,2735.5,16.045]
[1739417708739,5.05659779,2735.6,2735.5,16.045]
[1739417708975,8.48095688,2735.6,2735.5,16.045]
[1739417709281,10.07235688,2735.6,2735.5,16.045]
[1739417709669,10.07235688,2735.6,2735.5,13.045]
[1739417710092,3.65593,2735.3,2734.9,1.5087]
[1739417710292,0.55,2735.1,2735.0,17.047]
[1739417710462,0.55,2735.1,2735.0,16.047]
[1739417715971,4.27545688,2735.6,2735.1,3.0]
[1739417716212,4.27545688,2735.6,2735.3,1.5567]
[1739417716370,0.18103067,2735.9,2735.5,3.0]
[1739417716576,3.42435909,2736.0,2735.5,3.0]
[1739417716773,5.03645909,2736.3,2735.6,2.00466258]
[1739417716950,5.03645909,2736.3,2735.8,3.0]
[1739417717151,8.69110909,2736.3,2735.9,0.263]
[1739417717388,1.79455991,2736.2,2736.1,3.0]
[1739417717547,1.24455991,2736.2,2736.1,3.0]
[1739417717894,1.79455991,2736.2,2736.1,3.0]
[1739417718266,3.42435909,2736.3,2736.1,3.0]
[1739417718593,3.42435909,2736.6,2736.1,4.6248]
[1739417719194,0.55,2736.5,2736.1,17.6248]
[1739417719397,135.05851256,2736.8,2736.1,21.27959]
[1739417719701,135.05851256,2736.8,2736.4,1.5372]
[1739417719859,136.19937383,2736.8,2736.6,3.0]
[1739417720397,0.55,2736.7,2736.6,3.0]
[1739417720593,136.19937383,2736.8,2736.6,3.0]
[1739417720769,3.61461025,2736.7,2736.6,3.0]
[1739417721198,4.16461025,2736.7,2736.6,3.0]
[1739417721979,0.55,2736.7,2736.6,3.0]
[1739417722187,135.05851256,2736.8,2736.6,3.0]
[1739417723203,135.05851256,2736.8,2736.7,17.5372]
[1739417723784,135.05851256,2736.8,2736.7,18.8272]
[1739417724189,135.05851256,2736.8,2736.7,5.8272]
[1739417724863,135.05851256,2736.8,2736.7,9.48123]
[1739417725301,135.05851256,2736.8,2736.7,22.48123]
[1739417725605,135.05851256,2736.8,2736.7,21.19123]
[1739417726609,135.05851256,2736.8,2736.7,21.67669258]
[1739417728514,135.05851256,2736.8,2736.7,22.48123]
[1739417731606,135.05851256,2736.8,2736.7,22.74423]
[1739417731912,135.05851256,2736.8,2736.7,19.0902]
[1739417732640,135.15089435,2736.8,2736.7,19.0902]
[1739417732963,135.15089435,2736.8,2736.7,18.8272]
[1739417733170,138.59440625,2736.8,2736.7,17.552]
[1739417733368,138.59440625,2736.8,2736.7,14.552]
[1739417733799,139.14440625,2736.8,2736.7,14.29]
[1739417734269,139.14440625,2736.8,2736.7,1.552]
[1739417735063,139.14440625,2736.8,2736.7,0.262]
[1739417738170,139.14440625,2736.8,2736.6,3.0]
[1739417738423,3.61461025,2736.7,2736.6,3.0]
[1739417738716,3.61461025,2736.7,2736.6,3.262]
[1739417738927,3.70601354,2736.7,2736.6,3.262]
[1739417741597,0.09140329,2736.7,2736.6,3.262]
[1739417741997,135.05851256,2736.8,2736.6,3.262]
[1739417742227,0.08803471,2736.7,2736.6,16.262]
[1739417742627,135.05851256,2736.8,2736.6,16.262]
[1739417742792,135.05851256,2736.8,2736.7,8.29653]
[1739417743433,135.05851256,2736.8,2736.7,4.6425]
[1739417743840,135.05851256,2736.8,2736.7,8.6425]
[1739417744287,135.05851256,2736.8,2736.7,21.6425]
[1739417744483,135.05851256,2736.8,2736.7,56.6425]
[1739417745688,135.05851256,2736.8,2736.7,60.29653]
[1739417747060,135.05851256,2736.8,2736.7,56.6425]
[1739417748055,135.14692714,2736.8,2736.7,56.6425]
[1739417748456,135.14692714,2736.8,2736.7,60.29653]
[1739417749901,135.14692714,2736.8,2736.7,60.78199258]
[1739417751888,135.14692714,2736.8,2736.7,61.27387163]
[1739417752073,135.14692714,2736.8,2736.7,61.64143124]
[1739417752465,133.38912714,2736.8,2736.7,61.64143124]
[1739417752668,131.56217714,2736.8,2736.7,89.98173124]
[1739417753505,127.90827714,2736.8,2736.7,89.98173124]
[1739417753710,127.97742714,2736.8,2736.7,89.98173124]
[1739417754203,126.15047714,2736.8,2736.7,89.98173124]
[1739417754403,119.00302714,2736.8,2736.7,89.98173124]
[1739417755221,124.55302714,2736.8,2736.7,90.08173124]
[1739417755408,120.89912714,2736.8,2736.7,89.98173124]
[1739417755924,120.89912714,2736.8,2736.7,89.48985219]
[1739417756223,120.89912714,2736.8,2736.7,88.63683]
[1739417756534,126.44912714,2736.8,2736.7,88.89883]
[1739417756862,126.44912714,2736.8,2736.7,60.55853]
[1739417757100,126.44912714,2736.8,2736.7,60.29653]
[1739417757306,126.44912714,2736.8,2736.7,57.55853]
[1739417757503,131.99912714,2736.8,2736.7,57.55853]
[1739417757663,131.99912714,2736.8,2736.7,88.90103]
[1739417758410,131.99912714,2736.8,2736.7,89.38649258]
[1739417758706,131.99912714,2736.8,2736.7,61.53587163]
[1739417759008,137.54912714,2736.8,2736.7,61.04399258]
[1739417760443,130.24132714,2736.8,2736.7,61.53587163]
[1739417760645,133.96437714,2736.8,2736.7,61.90343124]
[1739417760854,133.96437714,2736.8,2736.7,90.24193124]
[1739417761407,124.82962714,2736.8,2736.7,90.24193124]
[1739417761952,130.37962714,2736.8,2736.7,90.24193124]
[1739417762337,126.72572714,2736.8,2736.7,90.24193124]
[1739417763357,128.62182714,2736.8,2736.7,90.24193124]
[1739417763947,124.96792714,2736.8,2736.7,90.24193124]
[1739417764510,125.03707714,2736.8,2736.7,90.24193124]
[1739417764910,124.64017214,2736.8,2736.7,90.24193124]
[1739417765358,72.23841458,2736.8,2736.7,94.08293124]
[1739417765511,50.84829655,2736.8,2736.7,94.08293124]
[1739417765712,54.87780271,2736.8,2736.7,94.08293124]